bitfinex/quotes_BTCUSD_20240918
["timestamp","ask_amount","ask_price","bid_price","bid_amount"]
[1726624828371,0.00995864,60227.0,60225.0,0.175043]
[1726624829287,0.00995864,60227.0,60226.0,0.166041]
[1726624830451,0.00995864,60227.0,60226.0,0.498123]
[1726624830677,0.01095864,60227.0,60226.0,0.507123]
[1726624830904,0.001,60227.0,60226.0,0.507123]
[1726624831130,0.0972,60228.0,60227.0,0.166038]
[1726624831607,0.0972,60228.0,60227.0,0.498114]
[1726624831837,0.10721187,60228.0,60227.0,0.498114]
[1726624833242,0.10721187,60228.0,60227.0,0.83019]
[1726624833479,0.10821187,60228.0,60227.0,0.83819]
[1726624833714,0.0982,60228.0,60227.0,0.83819]
[1726624833953,0.0982,60228.0,60227.0,1.178266]
[1726624834197,0.001,60228.0,60227.0,1.178266]
[1726624834434,0.001,60228.0,60227.0,1.25273046]
[1726624835155,0.001,60228.0,60227.0,1.178266]
[1726624835878,0.001,60228.0,60227.0,0.8958142]
[1726624836108,0.001,60228.0,60227.0,0.84619]
[1726624838256,0.001,60228.0,60227.0,0.8958142]
[1726624838485,0.001,60228.0,60227.0,0.84619]
[1726624840631,0.001,60228.0,60227.0,0.8958142]
[1726624841431,0.001,60228.0,60227.0,0.84619]
[1726624841659,0.001,60228.0,60227.0,0.8958142]
[1726624842603,0.001,60228.0,60227.0,0.016]
[1726624842604,0.592706,60228.0,60227.0,0.016]
[1726624842848,0.924777,60228.0,60227.0,0.016]
[1726624843104,0.436538,60227.0,60226.0,0.000822]
[1726624843336,1.53298959,60227.0,60226.0,0.000822]
[1726624843574,1.54302277,60227.0,60226.0,0.000822]
[1726624844520,1.54502277,60227.0,60226.0,0.000822]
[1726624845483,1.10097059,60223.0,60222.0,0.000822]
[1726624845728,1.43306959,60223.0,60222.0,0.000822]
[1726624845970,1.49572557,60223.0,60222.0,0.000822]
[1726624846206,1.49572557,60223.0,60217.0,0.000822]
[1726624846207,1.004115,60218.0,60217.0,0.000822]
[1726624846483,1.15696641,60218.0,60217.0,0.000822]
[1726624846728,1.15696641,60218.0,60210.0,0.000822]
[1726624846729,0.676747,60211.0,60210.0,0.000822]
[1726624847230,1.01881528,60211.0,60210.0,0.000822]
[1726624848198,1.01881528,60211.0,60210.0,0.002822]
[1726624849146,1.01881528,60211.0,60210.0,0.004822]
[1726624849426,0.35448528,60211.0,60210.0,0.004822]
[1726624850136,0.68665028,60211.0,60210.0,0.004822]
[1726624850626,0.68665028,60211.0,60210.0,0.002822]
[1726624851095,0.68665028,60211.0,60210.0,0.001822]
[1726624851328,0.69065028,60211.0,60210.0,0.001822]
[1726624852470,0.69065028,60211.0,60210.0,0.000822]
[1726624852962,0.69365028,60211.0,60210.0,0.000822]
[1726624853464,1.02581528,60211.0,60210.0,0.000822]
[1726624853936,1.35798028,60211.0,60210.0,0.000822]
[1726624854412,1.35498028,60211.0,60210.0,0.000822]
[1726624854645,1.35098028,60211.0,60210.0,0.000822]
[1726624855129,1.35398028,60211.0,60210.0,0.000822]
[1726624855365,1.02181528,60211.0,60210.0,0.000822]
[1726624855859,1.35698028,60211.0,60210.0,0.000822]
[1726624856325,1.35398028,60211.0,60210.0,0.000822]
[1726624856819,1.35698028,60211.0,60210.0,0.000822]
[1726624863929,1.02481528,60211.0,60210.0,0.000822]
[1726624865549,1.02181528,60211.0,60210.0,0.000822]
[1726624865987,1.01881528,60211.0,60210.0,0.000822]
[1726624866231,1.01981528,60211.0,60210.0,0.000822]
[1726624866448,1.02281528,60211.0,60210.0,0.000822]
[1726624867564,0.69065028,60211.0,60210.0,0.000822]
[1726624867802,1.02281528,60211.0,60210.0,0.000822]
[1726624868038,1.01981528,60211.0,60210.0,0.000822]
[1726624868273,1.02081528,60211.0,60210.0,0.000822]
[1726624868521,0.68865028,60211.0,60210.0,0.000822]
[1726624869223,0.68765028,60211.0,60210.0,0.000822]
[1726624869908,0.68865028,60211.0,60210.0,0.000822]
[1726624871799,0.01190328,60211.0,60210.0,0.65192841]
[1726624872335,0.002,60211.0,60210.0,0.65192841]
[1726624872565,0.001,60211.0,60210.0,0.65192841]
[1726624872795,0.0987,60220.0,60218.0,0.166062]
[1726624873038,0.0987,60220.0,60219.0,0.16606]
[1726624873272,0.1791,60224.0,60220.0,0.166056]
[1726624873528,0.1791,60224.0,60210.0,0.16367341]
[1726624873780,0.0791,60224.0,60222.0,0.16605]
[1726624874032,0.001646,60227.0,60221.0,0.166052]
[1726624874297,0.0987,60220.0,60213.0,0.166075]
[1726624874544,0.001,60211.0,60210.0,0.008822]
[1726624874838,0.001,60211.0,60210.0,0.174907]
[1726624875056,0.00415179,60219.0,60213.0,0.166075]
[1726624875329,0.166061,60219.0,60214.0,0.166073]
[1726624875568,0.166061,60219.0,60210.0,0.000822]
[1726624875569,0.0987,60220.0,60216.0,0.166068]
[1726624875821,0.166061,60219.0,60214.0,0.166073]
[1726624876093,0.166061,60219.0,60215.0,0.166071]
[1726624876303,0.0987,60220.0,60215.0,0.166071]
[1726624877262,0.0987,60220.0,60216.0,0.166067]
[1726624877542,0.33291,60232.0,60216.0,0.166067]
[1726624877543,0.000856,60232.0,60226.0,0.166041]
[1726624877783,0.000856,60232.0,60226.0,0.65097441]
[1726624878032,0.000856,60232.0,60226.0,1.50819208]
[1726624878271,0.000856,60232.0,60226.0,1.69819208]
[1726624878517,0.000856,60232.0,60226.0,2.07977021]
[1726624878798,0.000856,60232.0,60226.0,1.74968821]
[1726624879047,0.000856,60232.0,60226.0,2.07971782]
[1726624879286,0.000856,60232.0,60226.0,1.69819208]
[1726624879511,0.002646,60227.0,60226.0,2.03927408]
[1726624879741,0.002646,60227.0,60226.0,2.08871782]
[1726624880000,0.002646,60227.0,60226.0,1.75663582]
[1726624880237,0.002646,60227.0,60226.0,1.70719208]
[1726624880715,0.002646,60227.0,60226.0,1.72119208]
[1726624880939,0.001646,60227.0,60226.0,1.71219208]
[1726624881103,0.001646,60227.0,60226.0,1.69819208]
[1726624881373,0.002646,60227.0,60226.0,1.72619208]
[1726624881774,0.002646,60227.0,60226.0,1.71219208]
[1726624881925,0.002646,60227.0,60226.0,1.72619208]
[1726624883864,0.002646,60227.0,60226.0,2.05827408]
[1726624884284,0.002646,60227.0,60226.0,1.72619208]
[1726624884506,0.000856,60232.0,60230.0,1.52427]
[1726624884731,0.000856,60232.0,60230.0,1.84017508]
[1726624885412,0.000856,60232.0,60230.0,1.84217508]
[1726624885836,0.002644,60231.0,60230.0,1.85217508]
[1726624886700,0.002644,60231.0,60230.0,1.86617508]
[1726624887109,0.002644,60231.0,60230.0,1.86817508]
[1726624888660,0.002644,60231.0,60230.0,1.87482808]
[1726624890171,0.002644,60231.0,60230.0,1.194863]
[1726624893413,0.002644,60231.0,60230.0,0.19203]
[1726624893838,0.002644,60231.0,60230.0,0.52409]
[1726624894256,0.001644,60231.0,60230.0,0.51209]
[1726624894471,0.001644,60231.0,60230.0,0.50609]
[1726624894673,0.002644,60231.0,60230.0,0.50609]
[1726624894882,0.002644,60231.0,60230.0,0.51309]
[1726624895095,0.001644,60231.0,60230.0,0.49809]
[1726624895301,0.002644,60231.0,60230.0,0.83815]
[1726624896584,0.002644,60231.0,60230.0,0.84515]
[1726624896790,0.002644,60231.0,60230.0,0.83015]
[1726624897005,0.002644,60231.0,60230.0,0.84115]
[1726624897244,0.003644,60231.0,60230.0,0.85015]
[1726624897750,0.002644,60231.0,60230.0,0.84115]
[1726624897971,0.002644,60231.0,60230.0,0.85215]
[1726624897972,0.003644,60231.0,60230.0,0.85215]
[1726624898878,0.003644,60231.0,60230.0,0.18803]
[1726624900225,0.003644,60231.0,60230.0,0.022]
[1726624900465,0.260671,60231.0,60230.0,0.022]
[1726624901200,0.924779,60231.0,60230.0,0.022]
[1726624901904,0.93460386,60231.0,60230.0,0.022]
[1726624902849,0.93360386,60231.0,60230.0,0.011]
[1726624903082,0.166041,60226.0,60222.0,0.166052]
[1726624903294,0.091,60225.0,60220.0,0.166056]
[1726624903513,0.091,60225.0,60219.0,0.332118]
[1726624903514,0.091,60225.0,60221.0,0.166053]
[1726624903738,0.091,60225.0,60221.0,0.166054]
[1726624904183,0.091,60225.0,60222.0,0.002]
[1726624904652,0.091,60225.0,60221.0,0.168054]
[1726624904880,0.091,60225.0,60224.0,0.166046]
[1726624905417,0.091,60225.0,60224.0,0.498139]
[1726624905535,0.091,60225.0,60224.0,0.166046]
[1726624906910,0.091,60225.0,60224.0,0.498139]
[1726624907357,0.093,60225.0,60224.0,0.511139]
[1726624908026,0.093,60225.0,60224.0,0.179046]
[1726624912905,0.093,60225.0,60224.0,0.511139]
[1726624913363,0.002,60225.0,60224.0,1.33837867]
[1726624913828,0.002,60225.0,60224.0,1.38778783]
[1726624914053,0.002,60225.0,60224.0,1.41249241]
[1726624914276,0.002,60225.0,60224.0,1.33837867]
[1726624914503,0.002,60225.0,60224.0,1.41254192]
[1726624914941,0.002,60225.0,60224.0,1.36837867]
[1726624915152,0.002,60225.0,60224.0,1.46719699]
[1726624915399,0.001,60225.0,60224.0,1.46019699]
[1726624915625,0.001644,60231.0,60230.0,0.16603]
[1726624915842,0.001644,60231.0,60230.0,0.83015]
[1726624916064,0.001644,60231.0,60230.0,1.16421]
[1726624916286,0.001644,60231.0,60230.0,1.21365106]
[1726624916500,0.001644,60231.0,60230.0,1.16421]
[1726624917189,0.001644,60231.0,60230.0,1.19221]
[1726624917418,0.001644,60231.0,60230.0,1.22768216]
[1726624917658,0.001644,60231.0,60230.0,1.70132367]
[1726624918117,0.001644,60231.0,60230.0,1.77753074]
[1726624918345,0.001644,60231.0,60230.0,1.91632367]
[1726624918607,0.001644,60231.0,60230.0,2.06470566]
[1726624918828,0.002644,60231.0,60230.0,1.93032367]
[1726624919049,0.002644,60231.0,60230.0,1.91632367]
[1726624919270,0.001644,60231.0,60230.0,1.91632367]
[1726624919738,0.002644,60231.0,60230.0,1.93032367]
[1726624920442,0.002644,60231.0,60230.0,1.94014935]
[1726624921401,0.002644,60231.0,60230.0,1.99371647]
[1726624921643,0.002644,60231.0,60230.0,1.32021]
[1726624923297,0.002644,60231.0,60230.0,1.32221]
[1726624923975,0.002644,60231.0,60230.0,1.32021]
[1726624924223,0.002644,60231.0,60230.0,1.32221]
[1726624924470,0.002644,60231.0,60230.0,1.51326367]
[1726624924717,0.002644,60231.0,60230.0,1.84532367]
[1726624924982,0.002644,60231.0,60230.0,1.84732367]
[1726624925695,0.002644,60231.0,60230.0,1.87732367]
[1726624926391,0.002644,60231.0,60230.0,1.87532367]
[1726624927121,0.002644,60231.0,60230.0,1.81532367]
[1726624927355,0.002644,60231.0,60230.0,1.93906383]
[1726624927600,0.002644,60231.0,60230.0,1.81532367]
[1726624928353,0.002644,60231.0,60230.0,1.81732367]
[1726624929087,0.002644,60231.0,60230.0,1.82397767]
[1726624929334,0.002644,60231.0,60230.0,1.88397767]
[1726624930762,0.002644,60231.0,60230.0,2.03682908]
[1726624932914,0.002644,60231.0,60230.0,2.03482908]
[1726624933389,0.002644,60231.0,60230.0,2.00482908]
[1726624933624,0.002644,60231.0,60230.0,1.42062553]
[1726624933881,0.002644,60231.0,60230.0,1.326864]
[1726624934643,0.002644,60231.0,60230.0,1.45062553]
[1726624934873,0.002644,60231.0,60230.0,1.326864]
[1726624935111,0.0913524,60238.0,60237.0,0.830052]
[1726624936539,0.0913524,60238.0,60237.0,0.840052]
[1726624937241,0.0785,60246.0,60237.0,0.840052]
[1726624937242,0.0785,60246.0,60240.0,0.830012]
[1726624937493,0.0785,60246.0,60240.0,1.162017]
[1726624938192,0.0904,60242.0,60240.0,1.162017]
[1726624938417,0.0904,60242.0,60240.0,1.169017]
[1726624938655,0.004943,60241.0,60240.0,1.169017]
[1726624939608,0.004943,60241.0,60240.0,1.176017]
[1726624944145,0.004943,60241.0,60240.0,0.844012]
[1726624944935,0.006589,60241.0,60240.0,0.844012]
[1726624945216,0.098089,60241.0,60240.0,0.014]
[1726624945439,0.679187,60241.0,60240.0,0.014]
[1726624945694,0.679187,60241.0,60230.0,0.04953366]
[1726624945695,0.166022,60233.0,60229.0,0.04953366]
[1726624945944,0.166022,60233.0,60228.0,0.166033]
[1726624945945,0.0915,60231.0,60228.0,0.166033]
[1726624946425,0.0915,60231.0,60229.0,0.166032]
[1726624948297,0.0925,60231.0,60229.0,0.172032]
[1726624948955,0.0925,60231.0,60229.0,0.177032]
[1726624950120,0.0925,60231.0,60230.0,0.16603]
[1726624950388,0.0925,60231.0,60229.0,0.011]
[1726624950633,0.0925,60231.0,60229.0,0.177032]
[1726624951139,0.0915,60231.0,60229.0,0.171032]
[1726624951375,0.0925,60231.0,60230.0,0.006]
[1726624951809,0.0915,60231.0,60229.0,0.166032]
[1726624952030,0.0925,60231.0,60229.0,0.172032]
[1726624952269,0.0935,60231.0,60229.0,0.171032]
[1726624952539,0.259527,60231.0,60230.0,0.005]
[1726624952763,0.59573224,60231.0,60230.0,0.005]
[1726624953038,0.830177,60228.0,60227.0,0.000823]
[1726624953315,1.004577,60228.0,60227.0,0.000823]
[1726624953537,1.336648,60228.0,60227.0,0.000823]
[1726624954821,1.340648,60228.0,60227.0,0.000823]
[1726624956000,1.37169861,60228.0,60227.0,0.000823]
[1726624960720,1.62455002,60228.0,60227.0,0.000823]
[1726624960963,1.62455002,60228.0,60224.0,0.000823]
[1726624960964,1.455308,60225.0,60224.0,0.000823]
[1726624961195,1.455308,60225.0,60215.0,0.000823]
[1726624961196,1.15319341,60216.0,60215.0,0.000823]
[1726624961419,1.25319341,60216.0,60215.0,0.000823]
[1726624961639,1.60833041,60216.0,60215.0,0.000823]
[1726624962074,1.63438779,60216.0,60215.0,0.000823]
[1726624962572,1.61633041,60216.0,60215.0,0.001823]
[1726624963013,1.61633041,60216.0,60215.0,0.000823]
[1726624963014,1.60833041,60216.0,60215.0,0.000823]
[1726624963230,1.108342,60216.0,60215.0,0.001823]
[1726624963686,1.116342,60216.0,60215.0,0.001823]
[1726624964122,1.26919341,60216.0,60215.0,0.001823]
[1726624964775,1.2790084,60216.0,60215.0,0.001823]
[1726624965220,1.12615699,60216.0,60215.0,0.001823]
[1726624965697,1.15221311,60216.0,60215.0,0.001823]
[1726624965961,0.21205612,60216.0,60215.0,0.001823]
[1726624967069,0.37012412,60216.0,60215.0,0.001823]
[1726624967507,0.37712412,60216.0,60215.0,0.001823]
[1726624967958,0.36912412,60216.0,60215.0,0.000823]
[1726624968192,0.70926112,60216.0,60215.0,0.001823]
[1726624968869,0.185,60216.0,60215.0,0.001823]
[1726624969088,0.351068,60216.0,60215.0,0.001823]
[1726624969310,0.185,60216.0,60215.0,0.001823]
[1726624969758,0.351068,60216.0,60215.0,0.001823]
[1726624970280,0.185,60216.0,60215.0,0.001823]
[1726624972288,0.351068,60216.0,60215.0,0.001823]
[1726624973407,0.344068,60216.0,60215.0,0.001823]
[1726624973832,0.347068,60216.0,60215.0,0.001823]
[1726624974062,0.339068,60216.0,60215.0,0.000823]
[1726624975244,0.674205,60216.0,60215.0,0.000823]
[1726624975495,0.671205,60216.0,60215.0,0.000823]
[1726624976360,1.48833041,60216.0,60215.0,0.000823]
[1726624976625,1.25919341,60216.0,60215.0,0.000823]
[1726624977066,1.27924991,60216.0,60215.0,0.000823]
[1726624977288,1.61138691,60216.0,60215.0,0.002823]
[1726624977515,1.61138691,60216.0,60215.0,0.003823]
[1726624977805,1.61138691,60216.0,60215.0,0.000823]
[1726624978036,1.61438691,60216.0,60215.0,0.000823]
[1726624978293,1.61738691,60216.0,60215.0,0.000823]
[1726624978731,1.28924991,60216.0,60215.0,0.000823]
[1726624979401,1.28624991,60216.0,60215.0,0.000823]
[1726624979618,1.61838691,60216.0,60215.0,0.000823]
[1726624979838,1.62238691,60216.0,60215.0,0.000823]
[1726624980307,1.61138691,60216.0,60215.0,0.000823]
[1726624980529,1.61138691,60216.0,60215.0,0.001823]
[1726624980530,1.29524991,60216.0,60215.0,0.001823]
[1726624980745,1.28624991,60216.0,60215.0,0.000823]
[1726624980963,1.61838691,60216.0,60215.0,0.000823]
[1726624981179,1.29124991,60216.0,60215.0,0.001823]
[1726624981404,1.30324991,60216.0,60215.0,0.001823]
[1726624981624,1.31124991,60216.0,60215.0,0.002823]
[1726624981850,1.64338691,60216.0,60215.0,0.002823]
[1726624982722,1.61733041,60216.0,60215.0,0.002823]
[1726624983160,1.27319341,60216.0,60215.0,0.002823]
[1726624983417,1.25319341,60216.0,60215.0,0.000823]
[1726624983635,1.27019341,60216.0,60215.0,0.001823]
[1726624983863,1.60233041,60216.0,60215.0,0.001823]
[1726624984089,1.26319341,60216.0,60215.0,0.001823]
[1726624984330,1.60433041,60216.0,60215.0,0.001823]
[1726624984550,1.59433041,60216.0,60215.0,0.000823]
[1726624984772,1.26119341,60216.0,60215.0,0.001823]
[1726624985003,1.26819341,60216.0,60215.0,0.000823]
[1726624985461,1.27819341,60216.0,60215.0,0.001823]
[1726624985947,1.3042507,60216.0,60215.0,0.001823]
[1726624986381,1.2972507,60216.0,60215.0,0.001823]
[1726624986642,1.2982507,60216.0,60215.0,0.001823]
[1726624986879,1.2882507,60216.0,60215.0,0.000823]
[1726624987116,1.2872507,60216.0,60215.0,0.001823]
[1726624987367,1.2872507,60216.0,60215.0,0.000823]
[1726624987603,1.3042507,60216.0,60215.0,0.001823]
[1726624987833,1.2972507,60216.0,60215.0,0.001823]
[1726624988329,1.6383877,60216.0,60215.0,0.001823]
[1726624988553,1.6383877,60216.0,60215.0,0.000823]
[1726624988554,1.2882507,60216.0,60215.0,0.000823]
[1726624988757,1.6283877,60216.0,60215.0,0.001823]
[1726624989666,1.2872507,60216.0,60215.0,0.001823]
[1726624989886,1.2942507,60216.0,60215.0,0.001823]
[1726624990112,1.6263877,60216.0,60215.0,0.001823]
[1726624991056,1.2942507,60216.0,60215.0,0.001823]
[1726624991715,1.60033041,60216.0,60215.0,0.001823]
[1726624992234,1.62333041,60216.0,60215.0,0.001823]
[1726624995846,0.451068,60216.0,60215.0,0.001823]
[1726624995905,1.115342,60216.0,60215.0,0.001823]
[1726625003045,0.783205,60216.0,60215.0,0.001823]
[1726625003305,1.115342,60216.0,60215.0,0.001823]
[1726625011594,1.60033041,60216.0,60215.0,0.001823]
[1726625012254,1.95546741,60216.0,60215.0,0.001823]
[1726625017039,1.98152642,60216.0,60215.0,0.001823]
[1726625021597,1.95546741,60216.0,60215.0,0.001823]
[1726625025066,2.13056741,60216.0,60215.0,0.001823]
[1726625025309,1.95546741,60216.0,60215.0,0.001823]
[1726625025990,1.90293944,60216.0,60215.0,0.001823]
[1726625031199,1.115342,60216.0,60215.0,0.001823]
[1726625031445,0.845342,60216.0,60215.0,0.001823]
[1726625032366,0.838342,60216.0,60215.0,0.001823]
[1726625032575,0.845342,60216.0,60215.0,0.002823]
[1726625032799,0.937342,60216.0,60215.0,0.001823]
[1726625033043,0.937342,60216.0,60215.0,0.000823]
[1726625033044,0.930342,60216.0,60215.0,0.000823]
[1726625033247,0.0987,60221.0,60215.0,0.000823]
[1726625033483,0.34218312,60222.0,60215.0,0.000823]
[1726625033720,0.007,60216.0,60215.0,0.001823]
[1726625034235,0.498205,60216.0,60215.0,0.000823]
[1726625034436,0.502205,60216.0,60215.0,0.000823]
[1726625034668,0.173068,60216.0,60215.0,0.000823]
[1726625035134,0.170068,60216.0,60215.0,0.000823]
[1726625035341,0.006,60216.0,60215.0,0.000823]
[1726625036429,0.008,60216.0,60215.0,0.000823]
[1726625037074,0.008,60216.0,60215.0,0.166894]
[1726625037506,0.001646,60224.0,60219.0,0.166059]
[1726625037714,0.001646,60224.0,60215.0,0.499037]
[1726625037715,0.002,60216.0,60215.0,0.499037]
[1726625037936,0.002,60216.0,60215.0,0.83118]
[1726625038149,0.003,60216.0,60215.0,0.83118]
[1726625038359,0.001,60216.0,60215.0,0.83118]
[1726625039206,0.001,60216.0,60215.0,0.83418]
[1726625039433,0.001646,60224.0,60219.0,0.166058]
[1726625039879,0.001646,60224.0,60220.0,0.166057]
[1726625040078,0.1,60223.0,60218.0,0.166061]
[1726625040292,0.166054,60222.0,60215.0,0.337966]
[1726625040524,0.166054,60222.0,60217.0,0.166064]
[1726625040713,0.166054,60222.0,60219.0,0.001]
[1726625040925,0.1,60223.0,60219.0,0.001]
[1726625041192,0.166054,60222.0,60219.0,0.001]
[1726625041402,0.09495153,60222.0,60215.0,0.000823]
[1726625041617,0.166068,60217.0,60215.0,0.000823]
[1726625042093,0.166068,60216.0,60215.0,0.000823]
[1726625042312,0.98311854,60216.0,60215.0,0.000823]
[1726625043387,1.41525554,60216.0,60215.0,0.002823]
[1726625044038,1.41525554,60216.0,60215.0,0.004823]
[1726625044518,1.41525554,60216.0,60215.0,0.002823]
[1726625044739,1.41525554,60216.0,60215.0,0.005823]
[1726625044960,1.08311854,60216.0,60215.0,0.005823]
[1726625045183,0.930342,60216.0,60215.0,0.002823]
[1726625045622,0.60993407,60216.0,60215.0,0.002823]
[1726625046271,0.60993407,60216.0,60215.0,0.000823]
[1726625046506,0.61193407,60216.0,60215.0,0.000823]
[1726625046724,0.60793407,60216.0,60215.0,0.000823]
[1726625047214,0.61193407,60216.0,60215.0,0.000823]
[1726625047693,0.60993407,60216.0,60215.0,0.000823]
[1726625047921,0.60993407,60216.0,60215.0,0.002823]
[1726625048607,0.60993407,60216.0,60215.0,0.000823]
[1726625048824,0.60793407,60216.0,60215.0,0.000823]
[1726625049513,0.10972907,60216.0,60215.0,0.000823]
[1726625049738,0.166067,60217.0,60215.0,0.001823]
[1726625050176,0.1,60218.0,60215.0,0.001823]
[1726625050401,0.1,60218.0,60215.0,0.003823]
[1726625050619,0.1,60218.0,60215.0,0.002823]
[1726625050836,0.10968721,60220.0,60215.0,0.000823]
[1726625051312,0.166064,60218.0,60215.0,0.002823]
[1726625051776,0.166064,60218.0,60215.0,0.000823]
[1726625052059,0.166064,60218.0,60215.0,0.002823]
[1726625052249,0.002,60220.0,60216.0,0.166066]
[1726625052472,0.168058,60220.0,60215.0,0.000823]
[1726625052951,0.001646,60224.0,60223.0,0.498148]
[1726625053180,0.001646,60224.0,60223.0,1.00951933]
[1726625053451,0.001646,60224.0,60223.0,1.609445]
[1726625053902,0.99638809,60238.0,60230.0,0.41340654]
[1726625054121,0.99638809,60238.0,60230.0,0.74546654]
[1726625054353,0.005589,60241.0,60230.0,1.64711427]
[1726625054611,0.005589,60241.0,60230.0,1.647114]
[1726625054894,0.005589,60241.0,60230.0,1.57264021]
[1726625055361,0.002644,60231.0,60230.0,1.57764021]
[1726625055582,0.002644,60231.0,60230.0,1.19601]
[1726625055805,0.003644,60231.0,60230.0,0.87795]
[1726625056037,0.003644,60231.0,60230.0,0.51709]
[1726625056482,0.002644,60231.0,60230.0,0.51209]
[1726625056696,0.001644,60231.0,60230.0,0.49809]
[1726625056916,0.002644,60231.0,60230.0,0.50709]
[1726625057169,0.002644,60231.0,60230.0,0.83915]
[1726625057362,0.001644,60231.0,60230.0,0.83015]
[1726625057617,0.002644,60231.0,60230.0,0.83915]
[1726625058284,0.003644,60231.0,60230.0,0.85315]
[1726625061390,0.003644,60231.0,60230.0,1.04620367]
[1726625061610,0.003644,60231.0,60230.0,1.37826367]
[1726625062581,0.003644,60231.0,60230.0,0.85315]
[1726625063041,0.003644,60231.0,60230.0,1.18521]
[1726625064865,0.003644,60231.0,60230.0,0.85315]
[1726625065814,0.003644,60231.0,60230.0,1.18521]
[1726625068634,0.003644,60231.0,60230.0,1.53304021]
[1726625069154,0.003644,60231.0,60230.0,1.86510021]
[1726625069611,0.001644,60231.0,60230.0,1.84210021]
[1726625069842,0.003644,60231.0,60230.0,1.86310021]
[1726625070526,0.002644,60231.0,60230.0,1.85610021]
[1726625070744,0.002644,60231.0,60230.0,1.86310021]
[1726625070991,0.003644,60231.0,60230.0,1.86310021]
[1726625071222,0.002644,60231.0,60230.0,1.84910021]
[1726625071443,0.003644,60231.0,60230.0,1.91261078]
[1726625071630,0.003644,60231.0,60230.0,1.97914578]
[1726625071840,0.002644,60231.0,60230.0,1.63108578]
[1726625071956,0.003644,60231.0,60230.0,1.64508578]
[1726625072187,0.002644,60231.0,60230.0,1.63808578]
[1726625072878,0.003644,60231.0,60230.0,1.64508578]
[1726625073313,0.003644,60231.0,60230.0,1.59557521]
[1726625073738,0.003644,60231.0,60230.0,1.6450668]
[1726625074398,0.003644,60231.0,60230.0,1.249745]
[1726625075589,0.003644,60231.0,60230.0,1.59557521]
[1726625076050,0.003644,60231.0,60230.0,1.59757521]
[1726625076279,0.003644,60231.0,60230.0,1.67183229]
[1726625076747,0.003644,60231.0,60230.0,1.59757521]
[1726625077180,0.003644,60231.0,60230.0,1.67183229]
[1726625078133,0.003644,60231.0,60230.0,1.66983229]
[1726625078371,0.003644,60231.0,60230.0,1.249745]
[1726625086995,0.091344,60240.0,60239.0,0.166005]
[1726625088126,0.091344,60240.0,60239.0,0.843025]
[1726625088127,0.092344,60240.0,60239.0,0.843025]
[1726625088336,0.093344,60240.0,60239.0,0.518015]
[1726625088547,0.093344,60240.0,60239.0,0.850025]
[1726625093550,0.174444,60240.0,60239.0,0.186005]
[1726625096246,0.174444,60240.0,60239.0,0.186827]
[1726625096483,0.176088,60240.0,60239.0,0.186827]
[1726625098981,0.176088,60240.0,60239.0,0.26158227]
[1726625100123,0.176088,60240.0,60239.0,0.2862403]
[1726625100357,0.176088,60240.0,60239.0,0.186827]
[1726625100852,0.176088,60240.0,60239.0,0.2865094]
[1726625101289,0.176088,60240.0,60239.0,0.186827]
[1726625101504,0.176088,60240.0,60239.0,0.518837]
[1726625101940,0.176088,60240.0,60239.0,0.59359981]
[1726625102171,0.003644,60240.0,60239.0,0.64344]
[1726625102608,0.003644,60240.0,60239.0,0.850847]
[1726625102830,0.003644,60240.0,60239.0,1.52868721]
[1726625103060,0.003644,60240.0,60239.0,2.24147816]
[1726625103316,0.003644,60240.0,60239.0,2.04569721]
[1726625103560,0.003644,60240.0,60239.0,2.10344675]
[1726625103790,0.00261564,60241.0,60240.0,1.709022]
[1726625104036,0.003943,60259.0,60253.0,0.527899]
[1726625104266,0.003943,60259.0,60253.0,1.50759521]
[1726625104718,0.003943,60259.0,60253.0,1.50959521]
[1726625104935,0.003943,60259.0,60253.0,1.50759521]
[1726625105153,0.003943,60259.0,60253.0,1.65675887]
[1726625105379,0.002644,60254.0,60253.0,1.49159521]
[1726625106087,0.002644,60254.0,60253.0,0.843832]
[1726625106312,0.002644,60254.0,60253.0,0.94327154]
[1726625106538,0.002644,60254.0,60253.0,0.843832]
[1726625106766,0.002644,60254.0,60253.0,0.829832]
[1726625106767,0.001644,60254.0,60253.0,0.829832]
[1726625106982,0.001644,60254.0,60253.0,1.09604808]
[1726625107259,0.001644,60254.0,60253.0,1.10686615]
[1726625107493,0.001644,60254.0,60253.0,1.18666221]
[1726625107712,0.001644,60254.0,60253.0,1.19866221]
[1726625108474,0.001644,60254.0,60253.0,1.18666221]
[1726625108692,0.001644,60254.0,60253.0,1.20066221]
[1726625108918,0.001644,60254.0,60253.0,1.26066221]
[1726625109146,0.001644,60254.0,60253.0,1.26266221]
[1726625109379,0.001644,60254.0,60253.0,1.25166221]
[1726625109636,0.003943,60259.0,60258.0,0.589859]
[1726625109843,0.003943,60259.0,60258.0,1.84147164]
[1726625110091,0.003943,60259.0,60258.0,2.02440721]
[1726625110319,0.003943,60259.0,60258.0,2.17327099]
[1726625110549,0.003943,60259.0,60258.0,2.02440721]
[1726625111088,0.003943,60259.0,60258.0,2.03840721]
[1726625111326,0.004943,60259.0,60258.0,2.05240721]
[1726625111571,0.004943,60259.0,60258.0,2.06640721]
[1726625112452,0.003943,60259.0,60258.0,2.42809676]
[1726625112708,0.001646,60268.0,60267.0,0.280928]
[1726625112961,0.001646,60268.0,60267.0,1.69232621]
[1726625113196,0.001646,60268.0,60267.0,2.35603821]
[1726625113464,0.001646,60268.0,60267.0,2.02418221]
[1726625113939,0.001646,60268.0,60267.0,2.03818221]
[1726625114177,0.001646,60268.0,60267.0,2.05218221]
[1726625114410,0.001646,60268.0,60267.0,2.02418221]
[1726625114638,0.001646,60268.0,60267.0,2.03818221]
[1726625115076,0.001646,60268.0,60267.0,2.02418221]
[1726625115293,0.001646,60268.0,60267.0,2.03818221]